[Event "*** Titled Tuesday 3|2 Blitz"]
[Site "Chess.com"]
[Date "2016.08.02"]
[Round "7"]
[White "awb2001"]
[Black "Haridaskesavan"]
[Result "1-0"]
[WhiteElo "2314"]
[BlackElo "2103"]
[TimeControl "180+2"]
[EndTime "12:36:38 PDT"]
[Termination "awb2001 won by resignation"]

1. e4 {[%clk 0:03:01.9]} 1... e5 {[%clk 0:03:00.7]} 2. Nf3 {[%clk 0:03:01.9]}
2... Nc6 {[%clk 0:03:01.8]} 3. d4 {[%clk 0:03:02.8]} 3... exd4 {[%clk
0:03:02.3]} 4. Nxd4 {[%clk 0:03:04.7]} 4... Nf6 {[%clk 0:03:02.2]} 5. Nxc6
{[%clk 0:03:04.4]} 5... bxc6 {[%clk 0:03:02.7]} 6. e5 {[%clk 0:03:06]} 6... Ne4
{[%clk 0:03:03.9]} 7. Qe2 {[%clk 0:02:59.1]} 7... Nc5 {[%clk 0:03:02.6]} 8. g3
{[%clk 0:02:59.5]} 8... Be7 {[%clk 0:03:00.1]} 9. Bg2 {[%clk 0:03:00]} 9... O-O
{[%clk 0:03:00.1]} 10. O-O {[%clk 0:03:00.9]} 10... Ba6 {[%clk 0:02:45.1]} 11.
c4 {[%clk 0:03:01.4]} 11... Rb8 {[%clk 0:02:41.9]} 12. b3 {[%clk 0:03:02]} 12...
d5 {[%clk 0:02:35.7]} 13. exd6 {[%clk 0:03:02.2]} 13... Qxd6 {[%clk 0:02:28.5]}
14. Rd1 {[%clk 0:03:01.8]} 14... Qe6 {[%clk 0:01:58.8]} 15. Qxe6 {[%clk
0:02:50.3]} 15... fxe6 {[%clk 0:01:59.4]} 16. Bxc6 {[%clk 0:02:44.8]} 16... Bf6
{[%clk 0:01:57.7]} 17. Be3 {[%clk 0:02:33.3]} 17... Bxa1 {[%clk 0:01:54.7]} 18.
Bxc5 {[%clk 0:02:34.1]} 18... Rfd8 {[%clk 0:01:55.3]} 19. Re1 {[%clk 0:02:32.9]}
19... Bb7 {[%clk 0:01:44.5]} 20. Bxb7 {[%clk 0:02:27]} 20... Rxb7 {[%clk
0:01:45.4]} 21. Na3 {[%clk 0:02:28.7]} 21... Bd4 {[%clk 0:01:39]} 22. Bxd4
{[%clk 0:02:11.1]} 22... Rxd4 {[%clk 0:01:39.6]} 23. Nb5 {[%clk 0:02:11.5]}
23... Rd2 {[%clk 0:01:32.1]} 24. Rxe6 {[%clk 0:02:05.1]} 24... Kf7 {[%clk
0:01:31.5]} 25. Ra6 {[%clk 0:02:05.3]} 25... c5 {[%clk 0:01:14.4]} 26. Nd6+
{[%clk 0:02:02.3]} 26... Rxd6 {[%clk 0:01:11.3]} 27. Rxd6 {[%clk 0:02:04.2]}
27... Rc7 {[%clk 0:01:08.3]} 28. Kg2 {[%clk 0:02:01.6]} 28... Ke7 {[%clk
0:01:08.3]} 29. Rd5 {[%clk 0:02:03]} 29... Ke6 {[%clk 0:01:08.1]} 30. Kf3 {[%clk
0:02:04.6]} 30... Rc6 {[%clk 0:01:09.3]} 31. Ke4 {[%clk 0:02:05.4]} 31... Ra6
{[%clk 0:01:09.2]} 32. Rxc5 {[%clk 0:01:43.4]} 32... Rxa2 {[%clk 0:01:09.5]} 33.
Ke3 {[%clk 0:01:43.3]} 33... Kd6 {[%clk 0:01:06.3]} 34. Rb5 {[%clk 0:01:42.8]}
34... Kc6 {[%clk 0:01:06.7]} 35. h4 {[%clk 0:01:43.5]} 35... a5 {[%clk
0:01:04.8]} 36. f3 {[%clk 0:01:40.5]} 36... Ra3 {[%clk 0:01:03.5]} 37. Ke4
{[%clk 0:01:33.3]} 37... a4 {[%clk 0:00:58.7]} 38. bxa4 {[%clk 0:01:33.7]} 38...
Rc3 {[%clk 0:00:59.5]} 39. Kd4 {[%clk 0:01:20.6]} 39... Rxf3 {[%clk 0:01:00.1]}
40. Rg5 {[%clk 0:01:22.2]} 40... g6 {[%clk 0:01:00.4]} 41. a5 {[%clk 0:01:21.6]}
41... Ra3 {[%clk 0:00:56.7]} 42. g4 {[%clk 0:01:21]} 42... Ra1 {[%clk 0:00:55]}
43. Rb5 {[%clk 0:01:14.5]} 43... Rg1 {[%clk 0:00:50.6]} 44. g5 {[%clk
0:01:06.4]} 44... Rg4+ {[%clk 0:00:49.1]} 45. Kc3 {[%clk 0:01:04.1]} 45... Rxh4
{[%clk 0:00:49.7]} 46. a6 {[%clk 0:01:01.8]} 46... Rh3+ {[%clk 0:00:39.7]} 47.
Kb4 {[%clk 0:01:02]} 47... Rh1 {[%clk 0:00:38.8]} 48. Ra5 {[%clk 0:00:37.7]}
48... Rb1+ {[%clk 0:00:37.5]} 49. Kc3 {[%clk 0:00:38.2]} 49... Rb8 {[%clk
0:00:34.5]} 50. a7 {[%clk 0:00:38.5]} 50... Ra8 {[%clk 0:00:35.5]} 51. Kd4
{[%clk 0:00:33.9]} 51... Kb7 {[%clk 0:00:29.5]} 52. Ke5 {[%clk 0:00:31.5]} 52...
Re8+ {[%clk 0:00:24.7]} 53. Kd6 {[%clk 0:00:32.7]} 53... Ka8 {[%clk 0:00:25.8]}
54. Kd7 {[%clk 0:00:34.1]} 54... Rh8 {[%clk 0:00:20.6]} 55. c5 {[%clk
0:00:35.3]} 55... h6 {[%clk 0:00:21.2]} 56. gxh6 {[%clk 0:00:35.7]} 56... Rxh6
{[%clk 0:00:21.6]} 57. c6 {[%clk 0:00:37.2]} 57... g5 {[%clk 0:00:19.9]} 58. Kc7
{[%clk 0:00:27.5]} 58... Rh8 {[%clk 0:00:17.9]} 59. Kb6 {[%clk 0:00:28.4]} 59...
Rg8 {[%clk 0:00:17.7]} 60. c7 {[%clk 0:00:28.3]} 60... g4 {[%clk 0:00:18.2]} 61.
Rc5 {[%clk 0:00:27.4]} 61... Rc8 {[%clk 0:00:18]} 62. Rd5 {[%clk 0:00:28.4]}
62... g3 {[%clk 0:00:15.8]} 63. Rd8 {[%clk 0:00:29.1]} 1-0

[Event "*** Titled Tuesday 3|2 Blitz"]
[Site "Chess.com"]
[Date "2016.08.02"]
[Round "7"]
[White "Yaacovn"]
[Black "fastestmindalive"]
[Result "0-1"]
[WhiteElo "2614"]
[BlackElo "2435"]
[TimeControl "180+2"]
[EndTime "12:38:59 PDT"]
[Termination "fastestmindalive won by resignation"]

1. d4 {[%clk 0:03:01.9]} 1... Nf6 {[%clk 0:03:00.6]} 2. Nf3 {[%clk 0:03:02.5]}
2... e6 {[%clk 0:02:54.7]} 3. c4 {[%clk 0:03:03.7]} 3... Bb4+ {[%clk 0:02:52.4]}
4. Bd2 {[%clk 0:03:04.7]} 4... Qe7 {[%clk 0:02:51.4]} 5. g3 {[%clk 0:03:05.3]}
5... Nc6 {[%clk 0:02:49.4]} 6. a3 {[%clk 0:03:06.1]} 6... Bxd2+ {[%clk
0:02:50.2]} 7. Qxd2 {[%clk 0:03:08]} 7... e5 {[%clk 0:02:48.5]} 8. Bg2 {[%clk
0:03:04.8]} 8... O-O {[%clk 0:02:47]} 9. Nc3 {[%clk 0:03:04.4]} 9... d6 {[%clk
0:02:46.1]} 10. O-O {[%clk 0:03:04.7]} 10... Na5 {[%clk 0:02:38.8]} 11. dxe5
{[%clk 0:02:54.8]} 11... dxe5 {[%clk 0:02:29.6]} 12. Nd5 {[%clk 0:02:55.4]}
12... Nxd5 {[%clk 0:02:28.4]} 13. Qxa5 {[%clk 0:02:56.6]} 13... Nb6 {[%clk
0:02:23.2]} 14. Nxe5 {[%clk 0:02:54.5]} 14... Re8 {[%clk 0:02:17.2]} 15. f4
{[%clk 0:02:37.9]} 15... f6 {[%clk 0:02:03.4]} 16. Nf3 {[%clk 0:02:33.4]} 16...
Nxc4 {[%clk 0:01:58.3]} 17. Qd5+ {[%clk 0:02:22.7]} 17... Be6 {[%clk 0:01:59.2]}
18. Qxb7 {[%clk 0:02:22]} 18... Qc5+ {[%clk 0:01:59.5]} 19. Kh1 {[%clk
0:02:20.6]} 19... Bd5 {[%clk 0:01:57.7]} 20. Qa6 {[%clk 0:01:55.2]} 20... Rxe2
{[%clk 0:01:49]} 21. b4 {[%clk 0:01:47.6]} 21... Qe3 {[%clk 0:01:41.6]} 22. Rae1
{[%clk 0:01:28.1]} 22... Re8 {[%clk 0:01:02.9]} 23. Rxe2 {[%clk 0:01:21.3]}
23... Qxe2 {[%clk 0:01:04.8]} 24. h3 {[%clk 0:01:18.1]} 24... h6 {[%clk
0:00:54.3]} 25. Re1 {[%clk 0:01:10.6]} 25... Qxg2+ {[%clk 0:00:14.8]} 26. Kxg2
{[%clk 0:01:10]} 26... Rxe1 {[%clk 0:00:16.4]} 27. Qc8+ {[%clk 0:01:09.9]} 27...
Kh7 {[%clk 0:00:17.5]} 28. Qf5+ {[%clk 0:01:10.9]} 28... Kh8 {[%clk 0:00:18.6]}
29. Qc8+ {[%clk 0:00:59.2]} 29... Kh7 {[%clk 0:00:15.4]} 30. Kf2 {[%clk
0:00:56.9]} 30... Rd1 {[%clk 0:00:10]} 31. Nh4 {[%clk 0:00:45.1]} 31... Rd2+
{[%clk 0:00:03.3]} 32. Ke1 {[%clk 0:00:45.7]} 32... Be4 {[%clk 0:00:04.2]} 33.
Nf5 {[%clk 0:00:30.8]} 33... Rc2 {[%clk 0:00:04.2]} 34. Nd4 {[%clk 0:00:16.9]}
34... Rc1+ {[%clk 0:00:04]} 35. Ke2 {[%clk 0:00:18.5]} 35... Ra1 {[%clk
0:00:04.7]} 36. Qe6 {[%clk 0:00:12.8]} 36... Ra2+ {[%clk 0:00:06]} 37. Ke1
{[%clk 0:00:14.3]} 37... Ra1+ {[%clk 0:00:07.5]} 38. Ke2 {[%clk 0:00:15.6]}
38... Ra2+ {[%clk 0:00:08.9]} 39. Kd1 {[%clk 0:00:16.3]} 39... Rd2+ {[%clk
0:00:10]} 40. Kc1 {[%clk 0:00:17]} 40... Rxd4 {[%clk 0:00:11.3]} 41. g4 {[%clk
0:00:17.7]} 41... Nd6 {[%clk 0:00:11.7]} 42. f5 {[%clk 0:00:17.6]} 42... Rc4+
{[%clk 0:00:13]} 43. Kb2 {[%clk 0:00:17.4]} 43... Rc2+ {[%clk 0:00:14.1]} 44.
Kb3 {[%clk 0:00:18.5]} 44... Re2 {[%clk 0:00:15.3]} 45. Qd7 {[%clk 0:00:16]}
45... Bc2+ {[%clk 0:00:15.9]} 46. Kc3 {[%clk 0:00:15.7]} 46... Ne4+ {[%clk
0:00:16.9]} 47. Kc4 {[%clk 0:00:15.4]} 47... Bb1 {[%clk 0:00:13]} 48. Kb3 {[%clk
0:00:12.3]} 48... Re3+ {[%clk 0:00:11.9]} 49. Ka4 {[%clk 0:00:11.4]} 49... Bc2+
{[%clk 0:00:11.4]} 50. Kb5 {[%clk 0:00:11.9]} 50... Bd3+ {[%clk 0:00:11.6]} 51.
Kc6 {[%clk 0:00:12]} 51... Bf1 {[%clk 0:00:10.3]} 52. Kxc7 {[%clk 0:00:12.2]}
52... Rxa3 {[%clk 0:00:10.5]} 53. Kb8 {[%clk 0:00:12.4]} 53... Rb3 {[%clk
0:00:07.1]} 54. Qd4 {[%clk 0:00:11.3]} 54... Ng5 {[%clk 0:00:06.9]} 55. Kxa7
{[%clk 0:00:12]} 55... Bxh3 {[%clk 0:00:07.2]} 56. Ka6 {[%clk 0:00:10.5]} 56...
Bf1+ {[%clk 0:00:07.7]} 57. Ka7 {[%clk 0:00:11.5]} 57... Rg3 {[%clk 0:00:08.1]}
58. Qd7 {[%clk 0:00:08.3]} 58... Rxg4 {[%clk 0:00:08.4]} 59. b5 {[%clk
0:00:09.6]} 59... Ra4+ {[%clk 0:00:09.2]} 60. Kb8 {[%clk 0:00:10.9]} 60... Rb4
{[%clk 0:00:10.6]} 61. Qe8 {[%clk 0:00:09.4]} 61... Rxb5+ {[%clk 0:00:11.7]} 62.
Ka7 {[%clk 0:00:11.2]} 62... Rxf5 {[%clk 0:00:12.7]} 63. Qe1 {[%clk 0:00:11.8]}
63... Rf3 {[%clk 0:00:12.4]} 64. Qh4 {[%clk 0:00:13.7]} 64... Rf5 {[%clk
0:00:13.2]} 65. Kb6 {[%clk 0:00:14.8]} 65... Rf3 {[%clk 0:00:14.6]} 66. Kc7
{[%clk 0:00:16.1]} 66... Bd3 {[%clk 0:00:16.1]} 67. Kd8 {[%clk 0:00:17.3]} 67...
Bg6 {[%clk 0:00:17.7]} 68. Qa4 {[%clk 0:00:17.7]} 68... Rd3+ {[%clk 0:00:18.6]}
69. Kc7 {[%clk 0:00:18.9]} 69... Ne6+ {[%clk 0:00:19.6]} 70. Kb8 {[%clk
0:00:20]} 70... Rd8+ {[%clk 0:00:19.5]} 71. Ka7 {[%clk 0:00:20.2]} 71... Bd3
{[%clk 0:00:17.2]} 72. Qb3 {[%clk 0:00:19.3]} 72... Rd7+ {[%clk 0:00:17.9]} 73.
Kb8 {[%clk 0:00:17.7]} 73... Bf5 {[%clk 0:00:18.1]} 74. Qf3 {[%clk 0:00:17.6]}
74... g6 {[%clk 0:00:18.4]} 75. Qc6 {[%clk 0:00:17.5]} 75... Rg7 {[%clk
0:00:18.9]} 76. Qd6 {[%clk 0:00:17.5]} 76... Nc7 {[%clk 0:00:19.6]} 77. Qxf6
{[%clk 0:00:17.8]} 77... Nb5 {[%clk 0:00:18.8]} 78. Qb6 {[%clk 0:00:13.6]} 78...
Nc7 {[%clk 0:00:18.2]} 79. Qf6 {[%clk 0:00:13.2]} 79... Nd5 {[%clk 0:00:19]} 80.
Qd6 {[%clk 0:00:14.1]} 80... Ne3 {[%clk 0:00:18.2]} 81. Qe5 {[%clk 0:00:14.9]}
81... Nc4 {[%clk 0:00:19]} 82. Qc5 {[%clk 0:00:15.9]} 82... Nd2 {[%clk
0:00:18.9]} 83. Qd5 {[%clk 0:00:16.4]} 83... Ne4 {[%clk 0:00:20.2]} 84. Qe5
{[%clk 0:00:17.9]} 84... Ng5 {[%clk 0:00:21]} 85. Qf6 {[%clk 0:00:18.3]} 85...
Ne6 {[%clk 0:00:20.4]} 86. Qe5 {[%clk 0:00:19.2]} 86... h5 {[%clk 0:00:20.9]}
87. Qe1 {[%clk 0:00:19.4]} 87... Rd7 {[%clk 0:00:21.3]} 88. Qe5 {[%clk
0:00:19.6]} 88... Nd4 {[%clk 0:00:21.6]} 89. Ka8 {[%clk 0:00:19.6]} 89... Bg4
{[%clk 0:00:20.2]} 90. Qg5 {[%clk 0:00:18.7]} 90... Bf3+ {[%clk 0:00:20.7]} 91.
Kb8 {[%clk 0:00:19.6]} 91... Rf7 {[%clk 0:00:19.7]} 92. Qe3 {[%clk 0:00:18.6]}
92... Nc6+ {[%clk 0:00:20.6]} 93. Kc8 {[%clk 0:00:17.9]} 93... Bg4+ {[%clk
0:00:21.2]} 0-1

[Event "*** Titled Tuesday 3|2 Blitz"]
[Site "Chess.com"]
[Date "2016.08.02"]
[Round "7"]
[White "TyIerDurden"]
[Black "workhard91"]
[Result "1/2-1/2"]
[WhiteElo "2500"]
[BlackElo "2400"]
[TimeControl "180+2"]
[EndTime "12:40:39 PDT"]
[Termination "Game drawn by 50-move rule"]

1. Nf3 {[%clk 0:03:01.9]} 1... c5 {[%clk 0:03:00.6]} 2. g3 {[%clk 0:03:03.8]}
2... Nc6 {[%clk 0:03:01.8]} 3. Bg2 {[%clk 0:03:05.7]} 3... g6 {[%clk 0:03:03.1]}
4. O-O {[%clk 0:03:05.3]} 4... Bg7 {[%clk 0:03:04.4]} 5. d3 {[%clk 0:03:05.8]}
5... e6 {[%clk 0:03:04.8]} 6. Nbd2 {[%clk 0:03:05.5]} 6... d5 {[%clk 0:03:04]}
7. e4 {[%clk 0:03:07.4]} 7... Nge7 {[%clk 0:03:04.6]} 8. Re1 {[%clk 0:03:07.2]}
8... O-O {[%clk 0:03:05.6]} 9. c3 {[%clk 0:03:06.7]} 9... b6 {[%clk 0:02:57.1]}
10. h4 {[%clk 0:02:50.5]} 10... h6 {[%clk 0:02:57]} 11. e5 {[%clk 0:02:48.8]}
11... a5 {[%clk 0:02:52.9]} 12. d4 {[%clk 0:02:49.5]} 12... cxd4 {[%clk
0:02:33.6]} 13. cxd4 {[%clk 0:02:48]} 13... Ba6 {[%clk 0:02:34.8]} 14. Nf1
{[%clk 0:02:46.4]} 14... Nb4 {[%clk 0:01:54.7]} 15. a3 {[%clk 0:02:40.7]} 15...
Nd3 {[%clk 0:01:52.9]} 16. Re3 {[%clk 0:02:41.7]} 16... Nxc1 {[%clk 0:01:53.5]}
17. Rxc1 {[%clk 0:02:43]} 17... Rc8 {[%clk 0:01:54.5]} 18. Rec3 {[%clk
0:02:41.2]} 18... Rxc3 {[%clk 0:01:52.6]} 19. Rxc3 {[%clk 0:02:43.1]} 19... Qb8
{[%clk 0:01:53.2]} 20. Qc2 {[%clk 0:02:41.4]} 20... Rc8 {[%clk 0:01:54]} 21. Ne3
{[%clk 0:02:42.6]} 21... Rxc3 {[%clk 0:01:54.6]} 22. bxc3 {[%clk 0:02:41.2]}
22... Qc8 {[%clk 0:01:42.7]} 23. Qb3 {[%clk 0:02:37.8]} 23... Qc6 {[%clk
0:01:42.7]} 24. Nd2 {[%clk 0:02:35]} 24... Bf8 {[%clk 0:01:40.8]} 25. c4 {[%clk
0:02:34.3]} 25... dxc4 {[%clk 0:01:02.7]} 26. Ndxc4 {[%clk 0:02:36.2]} 26...
Bxc4 {[%clk 0:01:03.9]} 27. Qxc4 {[%clk 0:02:34.6]} 27... Qxc4 {[%clk
0:01:00.2]} 28. Nxc4 {[%clk 0:02:36.5]} 28... Nf5 {[%clk 0:01:01.8]} 29. d5
{[%clk 0:02:29.3]} 29... b5 {[%clk 0:00:32.9]} 30. Nxa5 {[%clk 0:02:25]} 30...
exd5 {[%clk 0:00:34.4]} 31. Bxd5 {[%clk 0:02:26.2]} 31... Bxa3 {[%clk
0:00:32.7]} 32. Kf1 {[%clk 0:02:23.6]} 32... Kg7 {[%clk 0:00:31.2]} 33. Nc6
{[%clk 0:02:22.8]} 33... Bb2 {[%clk 0:00:31]} 34. Ke2 {[%clk 0:02:06.5]} 34...
Nd4+ {[%clk 0:00:29.2]} 35. Nxd4 {[%clk 0:02:07.4]} 35... Bxd4 {[%clk
0:00:31.1]} 36. f4 {[%clk 0:02:08.7]} 36... h5 {[%clk 0:00:31.7]} 37. Kf3 {[%clk
0:02:07]} 37... b4 {[%clk 0:00:32.7]} 38. Ke4 {[%clk 0:02:07.2]} 38... Bc3
{[%clk 0:00:33.5]} 39. Bc4 {[%clk 0:02:05.7]} 39... Be1 {[%clk 0:00:34.4]} 40.
Kf3 {[%clk 0:02:05.3]} 40... Kf8 {[%clk 0:00:35.9]} 41. f5 {[%clk 0:02:02.1]}
41... gxf5 {[%clk 0:00:32.1]} 42. Kf4 {[%clk 0:02:03.1]} 42... Kg7 {[%clk
0:00:31.9]} 43. Kxf5 {[%clk 0:02:04.1]} 43... Bxg3 {[%clk 0:00:32.1]} 44. Kg5
{[%clk 0:02:05.1]} 44... Bxe5 {[%clk 0:00:32.9]} 45. Kxh5 {[%clk 0:02:02.3]}
45... Bc3 {[%clk 0:00:27.8]} 46. Kg5 {[%clk 0:02:00.4]} 46... Bd2+ {[%clk
0:00:29.3]} 47. Kf5 {[%clk 0:01:59.3]} 47... Be1 {[%clk 0:00:30.3]} 48. Kg5
{[%clk 0:01:59.4]} 48... Bd2+ {[%clk 0:00:30.3]} 49. Kg4 {[%clk 0:01:56.4]}
49... Kg6 {[%clk 0:00:28.4]} 50. Bd3+ {[%clk 0:01:57.2]} 50... Kg7 {[%clk
0:00:29.7]} 51. Bc4 {[%clk 0:01:56.5]} 51... Be1 {[%clk 0:00:29.4]} 52. h5
{[%clk 0:01:55]} 52... Bd2 {[%clk 0:00:30.8]} 53. Kf5 {[%clk 0:01:53.8]} 53...
Bc1 {[%clk 0:00:32]} 54. Kg4 {[%clk 0:01:51.1]} 54... Bd2 {[%clk 0:00:33.3]} 55.
Bd5 {[%clk 0:01:50.3]} 55... Bc1 {[%clk 0:00:34.3]} 56. Kf5 {[%clk 0:01:48.5]}
56... Bd2 {[%clk 0:00:35.6]} 57. Bc4 {[%clk 0:01:35.9]} 57... Bc1 {[%clk
0:00:35.6]} 58. Kg4 {[%clk 0:01:34.9]} 58... Kf6 {[%clk 0:00:34.4]} 59. Kf3
{[%clk 0:01:34.3]} 59... Bh6 {[%clk 0:00:35.7]} 60. Bd5 {[%clk 0:01:33.4]} 60...
Ke7 {[%clk 0:00:34.7]} 61. Bc4 {[%clk 0:01:34.3]} 61... f5 {[%clk 0:00:35.6]}
62. Bd3 {[%clk 0:01:33.5]} 62... Kf6 {[%clk 0:00:37]} 63. Bc4 {[%clk 0:01:32.9]}
63... Kg5 {[%clk 0:00:36.9]} 64. Bf7 {[%clk 0:01:33.9]} 64... Kf6 {[%clk
0:00:35.4]} 65. Bc4 {[%clk 0:01:32.8]} 65... Ke5 {[%clk 0:00:36.3]} 66. Ke2
{[%clk 0:01:32.8]} 66... Kd4 {[%clk 0:00:33.1]} 67. Be6 {[%clk 0:01:33.7]} 67...
f4 {[%clk 0:00:30.4]} 68. Kd2 {[%clk 0:01:34.8]} 68... f3+ {[%clk 0:00:31]} 69.
Ke1 {[%clk 0:01:33]} 69... Be3 {[%clk 0:00:28.1]} 70. Kf1 {[%clk 0:01:31.6]}
70... Kc3 {[%clk 0:00:28.2]} 71. h6 {[%clk 0:01:30.4]} 71... b3 {[%clk
0:00:23.5]} 72. h7 {[%clk 0:01:29.9]} 72... Bd4 {[%clk 0:00:24.3]} 73. h8=Q
{[%clk 0:01:24.5]} 73... Bxh8 {[%clk 0:00:24.1]} 74. Kf2 {[%clk 0:01:21.8]}
74... b2 {[%clk 0:00:21.4]} 75. Bf5 {[%clk 0:01:22.2]} 75... Bd4+ {[%clk
0:00:21.4]} 76. Kxf3 {[%clk 0:01:21.1]} 76... b1=Q {[%clk 0:00:23.3]} 77. Bxb1
{[%clk 0:01:19.4]} 77... Bc5 {[%clk 0:00:24.5]} 78. Bf5 {[%clk 0:01:21.3]} 78...
Ba3 {[%clk 0:00:26.4]} 79. Kg4 {[%clk 0:01:22.7]} 79... Bb2 {[%clk 0:00:28.3]}
80. Bg6 {[%clk 0:01:24.6]} 80... Ba3 {[%clk 0:00:30.2]} 81. Kf5 {[%clk
0:01:26.5]} 81... Bb2 {[%clk 0:00:32.1]} 82. Bh5 {[%clk 0:01:28.4]} 82... Ba3
{[%clk 0:00:34]} 83. Bg4 {[%clk 0:01:30.3]} 83... Bb2 {[%clk 0:00:35.9]} 84. Ke4
{[%clk 0:01:31.4]} 84... Ba3 {[%clk 0:00:37.8]} 85. Bf3 {[%clk 0:01:32.8]} 85...
Bb2 {[%clk 0:00:39.7]} 86. Bg4 {[%clk 0:01:34.2]} 86... Ba3 {[%clk 0:00:41.6]}
87. Kd5 {[%clk 0:01:36.1]} 87... Bb2 {[%clk 0:00:43.5]} 88. Ke6 {[%clk
0:01:37.5]} 88... Ba3 {[%clk 0:00:45.4]} 89. Bh5 {[%clk 0:01:38.8]} 89... Bb2
{[%clk 0:00:47.3]} 90. Be8 {[%clk 0:01:40.2]} 90... Ba3 {[%clk 0:00:49.2]} 91.
Kd5 {[%clk 0:01:41.2]} 91... Bb2 {[%clk 0:00:51.1]} 92. Bf7 {[%clk 0:01:42]}
92... Ba3 {[%clk 0:00:53]} 93. Bg6 {[%clk 0:01:42.7]} 93... Bb2 {[%clk
0:00:54.9]} 94. Bf5 {[%clk 0:01:43.8]} 94... Ba3 {[%clk 0:00:56]} 95. Be6 {[%clk
0:01:45.7]} 95... Bb2 {[%clk 0:00:57.9]} 96. Bf5 {[%clk 0:01:46.6]} 96... Ba3
{[%clk 0:00:59.8]} 97. Ke4 {[%clk 0:01:47.9]} 97... Bb2 {[%clk 0:01:01.7]} 98.
Kf3 {[%clk 0:01:49.1]} 98... Ba3 {[%clk 0:01:03.6]} 99. Bg4 {[%clk 0:01:50.2]}
99... Bb2 {[%clk 0:01:05.5]} 100. Bf5 {[%clk 0:01:51.5]} 100... Ba3 {[%clk
0:01:07.4]} 101. Ke2 {[%clk 0:01:52.8]} 101... Bb2 {[%clk 0:01:09.3]} 102. Kf3
{[%clk 0:01:54.2]} 102... Ba3 {[%clk 0:01:10.2]} 103. Ke4 {[%clk 0:01:56.1]}
103... Bb2 {[%clk 0:01:08.4]} 104. Kd5 {[%clk 0:01:58]} 104... Ba3 {[%clk
0:01:10.3]} 105. Bg6 {[%clk 0:01:58.3]} 105... Bb2 {[%clk 0:01:12.2]} 106. Ke6
{[%clk 0:01:59.5]} 106... Ba3 {[%clk 0:01:12.4]} 107. Kd5 {[%clk 0:02:01.4]}
107... Bb2 {[%clk 0:01:14.3]} 108. Be8 {[%clk 0:02:02.7]} 108... Ba3 {[%clk
0:01:16.2]} 109. Bf7 {[%clk 0:02:04]} 109... Bb2 {[%clk 0:01:18.1]} 110. Be6
{[%clk 0:02:05.2]} 110... Ba3 {[%clk 0:01:20]} 111. Bf5 {[%clk 0:02:06.3]}
111... Bb2 {[%clk 0:01:21.9]} 112. Ke4 {[%clk 0:02:07.4]} 112... Ba3 {[%clk
0:01:23.8]} 113. Kf3 {[%clk 0:02:08.6]} 113... Bb2 {[%clk 0:01:25.7]} 114. Ke2
{[%clk 0:02:09.7]} 114... Ba3 {[%clk 0:01:27.6]} 115. Bg4 {[%clk 0:02:10.9]}
115... Bb2 {[%clk 0:01:29.5]} 116. Kf3 {[%clk 0:01:41.5]} 116... Ba3 {[%clk
0:01:31.4]} 117. Bf5 {[%clk 0:01:42.2]} 117... Bb2 {[%clk 0:01:33.3]} 118. Ke4
{[%clk 0:01:43.3]} 118... Ba3 {[%clk 0:01:35.2]} 119. Kd5 {[%clk 0:01:43.7]}
119... Bb2 {[%clk 0:01:37.1]} 120. Kc6 {[%clk 0:01:44.7]} 120... Ba3 {[%clk
0:01:39]} 121. Be6 {[%clk 0:01:45.7]} 121... Bc1 {[%clk 0:01:40.9]} 122. Bf7
{[%clk 0:01:46.7]} 122... Bd2 {[%clk 0:01:42.8]} 123. Kd5 {[%clk 0:01:44.3]}
123... Bc1 {[%clk 0:01:44.7]} 124. Ke4 {[%clk 0:01:45.4]} 124... Bd2 {[%clk
0:01:46.6]} 125. Bh5 {[%clk 0:01:46.5]} 125... Bc1 {[%clk 0:01:48.5]} 126. Bg4
{[%clk 0:01:47.4]} 126... Ba3 {[%clk 0:01:50.4]} 127. Bf5 {[%clk 0:01:49.3]}
127... Bb2 {[%clk 0:01:52.3]} 128. Bg6 {[%clk 0:01:51.2]} 128... Ba3 {[%clk
0:01:54.2]} 129. Kd5 {[%clk 0:01:53.1]} 129... Bb2 {[%clk 0:01:56.1]} 130. Bf7
{[%clk 0:01:54.2]} 130... Bc1 {[%clk 0:01:57.5]} 131. Be6 {[%clk 0:01:55.4]}
131... Bb2 {[%clk 0:01:59.4]} 132. Bf5 {[%clk 0:01:53]} 132... Bc1 {[%clk
0:02:01.3]} 133. Ke4 {[%clk 0:01:53.8]} 133... Bb2 {[%clk 0:02:03.2]} 134. Kf3
{[%clk 0:01:31.4]} 134... Bc1 {[%clk 0:02:05.1]} 135. Ke2 {[%clk 0:01:32.2]}
135... Be3 {[%clk 0:02:03.6]} 136. Kf3 {[%clk 0:01:32.9]} 136... Bf4 {[%clk
0:02:04.5]} 137. Ke4 {[%clk 0:01:33]} 137... Be5 {[%clk 0:02:05.7]} 138. Be6
{[%clk 0:01:33.9]} 138... Bf4 {[%clk 0:02:06.9]} 139. Bf5 {[%clk 0:01:34.8]}
139... Be3 {[%clk 0:02:08.1]} 140. Bh7 {[%clk 0:01:35.9]} 140... Bf4 {[%clk
0:02:09.6]} 141. Kd5 {[%clk 0:01:02.8]} 141... Be3 {[%clk 0:02:11.5]} 142. Bg6
{[%clk 0:01:03.9]} 142... Bf4 {[%clk 0:02:13.4]} 143. Bh5 {[%clk 0:01:05]}
143... Be3 {[%clk 0:02:15.3]} 144. Bg4 {[%clk 0:01:06.1]} 144... Bf4 {[%clk
0:02:17.2]} 145. Bf5 {[%clk 0:01:07.1]} 145... Be3 {[%clk 0:02:19.1]} 146. Ke4
{[%clk 0:01:08.1]} 146... Bf4 {[%clk 0:02:20.4]} 147. Kf3 {[%clk 0:01:09]}
147... Be3 {[%clk 0:02:21]} 148. Ke2 {[%clk 0:01:10]} 148... Bd4 {[%clk
0:02:22]} 149. Kf3 {[%clk 0:01:10.9]} 149... Bc5 {[%clk 0:02:23.9]} 150. Ke4
{[%clk 0:01:11.9]} 150... Ba3 {[%clk 0:02:25.8]} 151. Kd5 {[%clk 0:01:13]}
151... Bb2 {[%clk 0:02:27.7]} 152. Be6 {[%clk 0:01:14.1]} 1/2-1/2

[Event "*** Titled Tuesday 3|2 Blitz"]
[Site "Chess.com"]
[Date "2016.08.02"]
[Round "8"]
[White "ChessWarrior7197"]
[Black "Tesla37"]
[Result "1/2-1/2"]
[WhiteElo "2478"]
[BlackElo "2653"]
[TimeControl "180+2"]
[EndTime "12:45:14 PDT"]
[Termination "Game drawn by repetition"]

1. e4 {[%clk 0:03:01.9]} 1... c5 {[%clk 0:03:00.5]} 2. Nf3 {[%clk 0:03:01.7]}
2... e6 {[%clk 0:03:01.2]} 3. g3 {[%clk 0:03:01.7]} 3... Nc6 {[%clk 0:03:00.5]}
4. Bg2 {[%clk 0:03:02.3]} 4... Nf6 {[%clk 0:02:59.8]} 5. d3 {[%clk 0:03:02.5]}
5... d5 {[%clk 0:02:59.6]} 6. Nbd2 {[%clk 0:03:01.7]} 6... h6 {[%clk 0:02:58.5]}
7. O-O {[%clk 0:03:02.4]} 7... Be7 {[%clk 0:02:57.9]} 8. Re1 {[%clk 0:03:03.3]}
8... O-O {[%clk 0:02:57.2]} 9. h4 {[%clk 0:03:01.6]} 9... b6 {[%clk 0:02:53.5]}
10. Qe2 {[%clk 0:02:59.8]} 10... Ba6 {[%clk 0:02:48.5]} 11. e5 {[%clk
0:03:00.1]} 11... Nd7 {[%clk 0:02:47.9]} 12. Nf1 {[%clk 0:03:01.1]} 12... Qc7
{[%clk 0:02:47.2]} 13. N1h2 {[%clk 0:03:01.4]} 13... Rac8 {[%clk 0:02:40.6]} 14.
Ng4 {[%clk 0:03:01.4]} 14... Rfe8 {[%clk 0:02:28.1]} 15. Nxh6+ {[%clk
0:02:47.6]} 15... gxh6 {[%clk 0:02:27.5]} 16. Bxh6 {[%clk 0:02:48.7]} 16... Bf8
{[%clk 0:02:25.1]} 17. Bxf8 {[%clk 0:02:46.1]} 17... Kxf8 {[%clk 0:02:20.6]} 18.
Qe3 {[%clk 0:02:32.2]} 18... Nd4 {[%clk 0:02:09.3]} 19. Qh6+ {[%clk 0:02:26.2]}
19... Ke7 {[%clk 0:02:09.8]} 20. Qg5+ {[%clk 0:02:27.2]} 20... Kf8 {[%clk
0:02:10.6]} 21. Qh6+ {[%clk 0:02:08.2]} 21... Ke7 {[%clk 0:02:11.1]} 22. Qg5+
{[%clk 0:02:09.4]} 22... Kf8 {[%clk 0:01:55.7]} 23. Qh6+ {[%clk 0:02:09.3]}
23... Ke7 {[%clk 0:01:56.6]} 24. Qg5+ {[%clk 0:02:10.3]} 24... Kf8 {[%clk
0:01:51.2]} 25. Qh6+ {[%clk 0:02:11.3]} 25... Ke7 {[%clk 0:01:52.2]} 26. Qg5+
{[%clk 0:02:12.5]} 26... Kf8 {[%clk 0:01:41.2]} 27. Qh6+ {[%clk 0:02:13.2]}
1/2-1/2